[Event "European Corporate Championship 2022"]
[Site "Rotterdam"]
[Date "2022.06.19"]
[Round "6.1"]
[White "Van Wely, Loek"]
[Black "Haast, Mark"]
[Result "1/2-1/2"]
[ECO "E11"]
[WhiteElo "2618"]
[BlackElo "2414"]
[Annotator "TA"]
[PlyCount "99"]
[EventDate "2022.06.18"]
[EventType "team-tourn"]
[EventCountry "NED"]
[SourceTitle "playchess.com"]
[Source "ChessBase"]
[SourceQuality "1"]
[TimeControl "900+5"]

{[%evp 9,99,26,40,42,42,22,70,20,17,19,59,39,55,55,60,28,66,20,8,0,0,8,23,12,33,25,42,14,61,69,117,110,112,121,161,146,175,130,193,191,224,216,183,125,188,144,145,136,146,61,63,57,96,104,121,78,81,80,160,0,0,0,0,0,0,0,0,0,0,0,0,0,0,-5,0,0,8,-10,-10,-10,-10,-18,0,-39,-8,-68,-56,-39,0,0,0,-47]} 1. d4 {[%emt 0:00:03]} Nf6 {[%emt 0:00:02]} 2. c4 {[%emt 0:00:01]} e6 {[%emt 0:00:01][%cal Be7e6,Be6e5][%mdl 32]} 3. Nf3 {[%emt 0:00:01]} Bb4+ {[%emt 0:00:02]} 4. Nbd2 {[%emt 0:00:02]} d6 {[%emt 0:00:37]} 5. g3 {[%emt 0:00:44]} Nbd7 {[%emt 0:01:26]} 6. Bg2 {[%emt 0:00:05] E11: Bogo-Indian.} e5 {[%emt 0:00:04]} 7. O-O {[%emt 0:00:06]} O-O {[%emt 0:00:42]} (7... exd4 $11 8. a3 (8. Nxd4 a5 $11) 8... Bc5) 8. a3 {[%emt 0:00:41]} ({Better is} 8. Nb3 $1 $14 exd4 9. Nfxd4) 8... Bxd2 $11 {[%emt 0:00:03]} 9. Bxd2 {[%emt 0:00:13]} a5 {[%emt 0:00:38] [#]} 10. dxe5 $146 {[%emt 0:01:06]} ({Predecessor:} 10. Qc2 a4 11. c5 dxc5 12. dxe5 Ng4 13. Ng5 g6 14. e6 Nde5 15. exf7+ Nxf7 16. Nxf7 Rxf7 {1-0 (68) Gebigke,M (2114)-Boettcher,P (2173) Berlin 2016}) 10... dxe5 {[%emt 0:00:14]} 11. Bc3 {[%emt 0:04:33]} Qe7 {[%emt 0:00:34]} 12. b4 {[%emt 0:00:03]} Ne4 {[%emt 0:02:30]} 13. Be1 {[%emt 0:00:03]} (13. Bb2 $14 {was preferrable.}) 13... axb4 {[%emt 0:00:17]} 14. axb4 {[%emt 0:00:01]} Rxa1 {[%emt 0:00:02]} 15. Qxa1 {[%emt 0:00:02]} Re8 {[%emt 0:01:05]} 16. Nd2 {[%emt 0:00:26]} Nxd2 {[%emt 0:00:33]} 17. Bxd2 {[%emt 0:00:02][%cal Be1d2,Bd2e3,Be3d4][%mdl 32]} c6 {[%emt 0:00:31]} 18. Qa7 {[%emt 0:01:09]} f6 {[%emt 0:00:54]} (18... Qd6 $11 19. Qe3 h6) 19. b5 $14 {[%emt 0:01:20]} cxb5 {[%emt 0:00:32]} (19... e4 $14) 20. cxb5 $16 {[%emt 0:00:02]} e4 {[%emt 0:01:56]} 21. Rc1 {[%emt 0:00:42]} Qe6 {[%emt 0:00:49]} 22. Be3 {[%emt 0:01:25] Prevents Nb6.} f5 {[%emt 0:00:01]} 23. h3 {[%emt 0:00:22]} h5 {[%emt 0:00:38]} (23... Nf6 $16 {was called for.}) 24. Bd4 $18 {[%emt 0:00:14]} h4 {[%emt 0:00:27]} 25. Qa8 {[%emt 0:00:33]} Nf6 {[%emt 0:00:19]} 26. Qb8 {[%emt 0:00:34]} (26. gxh4 $18 f4 27. Bxf6 gxf6 28. Rc3) 26... Nd5 {[%emt 0:00:23]} (26... hxg3 $16 {was worth a try.} 27. Qxg3 (27. fxg3 Nh5 $16) 27... Bd7) 27. e3 {[%emt 0:00:18]} hxg3 {[%emt 0:00:11]} 28. Qxg3 {[%emt 0:00:05][%csl Gd4][%cal Rg3g7]} Qf7 {[%emt 0:00:05]} 29. Qb8 {[%emt 0:00:19]} (29. Kh2 $16) 29... Be6 $14 {[%emt 0:00:15]} 30. Qd6 {[%emt 0:00:13]} Qd7 {[%emt 0:00:13] [#]} 31. Qg3 {[%emt 0:00:30]} Re7 {[%emt 0:00:55]} 32. Bf1 {[%emt 0:00:03] White is more active.} f4 {[%emt 0:00:33]} 33. exf4 {[%emt 0:00:03]} Nxf4 {[%emt 0:00:02] [#]} 34. Qxf4 $2 {[%emt 0:01:10]} (34. Be5 $1 $16 {[%cal Re5f4]} Nh5 35. Qh4) 34... Qxd4 $11 {[%emt 0:00:01]} 35. Bg2 {[%emt 0:00:13]} Rf7 $36 {[%emt 0:00:09][%mdl 2048] Black has the initiative.} 36. Qe3 {[%emt 0:00:03]} Qxe3 {[%emt 0:00:05]} 37. fxe3 {[%emt 0:00:00][%mdl 4096] Endgame KRB-KRB} Rf5 {[%emt 0:00:05]} 38. Rb1 {[%emt 0:00:09]} Re5 {[%emt 0:00:02]} 39. b6 {[%emt 0:00:10]} Bd5 {[%emt 0:00:02]} 40. Rb5 {[%emt 0:00:05]} Kf7 {[%emt 0:00:06]} 41. Kf2 {[%emt 0:00:24]} Kf6 {[%emt 0:00:01]} 42. Kg3 {[%emt 0:00:07]} Bc6 {[%emt 0:00:02]} 43. Rb4 {[%emt 0:00:02]} Rg5+ {[%emt 0:00:02]} 44. Kf2 {[%emt 0:00:01]} Rf5+ {[%emt 0:00:01]} 45. Ke1 {[%emt 0:00:02]} Rg5 {[%emt 0:00:01]} 46. Bf1 {[%emt 0:00:04]} Rg3 {[%emt 0:00:05]} 47. Kf2 {[%emt 0:00:07]} (47. Kd2 $11) 47... Rf3+ $15 {[%emt 0:00:01]} 48. Ke2 {[%emt 0:00:01]} Rg3 {[%emt 0:00:01] Prevents Bg2.} 49. Kf2 {[%emt 0:00:16]} Rf3+ {[%emt 0:00:01]} (49... Rg6 $11) 50. Ke2 {[%emt 0:00:06] White really could win this.  Weighted Error Value: White=0.20 (precise) /Black=0.16 (very precise)} 1/2-1/2

[Event "European Corporate Championship 2022"]
[Site "Rotterdam"]
[Date "2022.06.19"]
[Round "6.2"]
[White "Schouten, Jordy"]
[Black "Lambrechts, Koen"]
[Result "0-1"]
[ECO "B12"]
[WhiteElo "2121"]
[BlackElo "2349"]
[Annotator "TA"]
[PlyCount "78"]
[EventDate "2022.06.18"]
[EventType "team-tourn"]
[EventCountry "NED"]
[SourceTitle "playchess.com"]
[Source "ChessBase"]
[SourceQuality "1"]
[TimeControl "900+5"]

{[%evp 9,78,-14,-4,-32,-21,-30,2,-12,0,11,8,0,43,17,23,32,44,0,14,4,31,20,48,-2,51,0,14,-42,-23,-47,-54,-68,-76,-41,-35,-231,81,84,55,74,61,63,70,48,138,125,145,141,29991,634,597,-102,-95,-78,-94,-191,-187,-205,-183,-192,-195,-197,-198,-605,-597,-651,-338,-580,-214,-209,-203]} 1. e4 {[%emt 0:00:03]} c6 {[%emt 0:00:02]} 2. d4 {[%emt 0:00:01]} d5 {[%emt 0:00:01]} 3. f3 {[%emt 0:00:01]} e6 {[%emt 0:00:13]} 4. Be3 {[%emt 0:00:06]} Nf6 {[%emt 0:00:18][%cal Bg8f6,Bf6d7,Bd7b6,Bb6d5][%mdl 32]} 5. Nd2 {[%emt 0:00:14]} Qb6 {[%emt 0:01:04]} 6. Bd3 {[%emt 0:00:16] B12: Caro-Kann: Advance Variation.} Qxb2 {[%emt 0:00:31][%cal Oc6c5]} 7. Ne2 {[%emt 0:00:20]} Qb6 {[%emt 0:00:17]} (7... Qa3 $5 {[%cal Rc6c5]}) 8. O-O {[%emt 0:00:21] The position is equal.} Be7 {[%emt 0:00:09]} 9. e5 {[%emt 0:00:07]} Nfd7 {[%emt 0:00:03]} 10. f4 {[%emt 0:00:13]} c5 {[%emt 0:01:13] [#] White must now prevent ...c4.} 11. Rb1 $146 {[%emt 0:00:32][%mdl 1024] White has compensation.} ({Predecessor:} 11. c4 cxd4 12. Nxd4 Nc6 13. Nf5 Bc5 14. Nd6+ Kf8 15. Bxc5 Qxc5+ 16. Kh1 Nb4 17. Be2 {1-0 (29) Blasco,L-Argueso Pascual,M Spain 1993}) 11... Qc7 {[%emt 0:00:29] aiming for ...c4.} 12. c4 {[%emt 0:00:13]} Nb6 {[%emt 0:01:01]} 13. Qb3 {[%emt 0:02:43]} O-O {[%emt 0:01:45]} 14. Rfc1 {[%emt 0:01:07]} dxc4 {[%emt 0:00:26]} 15. Nxc4 {[%emt 0:00:08]} Nd5 {[%emt 0:01:11]} 16. Bf2 {[%emt 0:00:06]} ({White should play} 16. Be4 $1 $14) 16... Nd7 {[%emt 0:00:24]} (16... cxd4 $1 $11 17. Bxd4 Nc6) 17. Nd2 {[%emt 0:01:58]} ({Better is} 17. Be4 $14) 17... b6 {[%emt 0:00:58]} 18. Ne4 {[%emt 0:00:50]} (18. Be4 $11) 18... Rd8 {[%emt 0:02:14]} 19. Rb2 {[%emt 0:02:58]} a5 {[%emt 0:00:29]} 20. Bb1 {[%emt 0:01:07]} Ba6 {[%emt 0:00:20]} 21. f5 {[%emt 0:00:15]} exf5 {[%emt 0:01:42]} 22. N4g3 $2 {[%emt 0:00:12]} ({Only move:} 22. Qxd5 $15 fxe4 23. Qxe4 (23. Bxe4 Bg5 $17)) 22... Bb7 $2 {[%emt 0:00:35]} (22... Bg5 $1 $19 {[%cal Rg5c1]} 23. Re1 cxd4 $1 24. Qxd5 Nxe5) 23. Nxf5 $16 {[%emt 0:00:09]} Bf8 {[%emt 0:00:02]} (23... Bg5 $2 24. Qg3 h6 25. h4 $1 $18) 24. Qh3 $1 $36 {[%emt 0:01:12][%cal Of5e7][%mdl 2048] White wants to mate with Ne7+! White is on the roll.} g6 {[%emt 0:00:04]} 25. Nh6+ {[%emt 0:00:02]} Bxh6 {[%emt 0:00:34]} 26. Qxh6 {[%emt 0:00:01]} Qc6 {[%emt 0:00:21]} (26... Re8 $14) 27. Bh4 {[%emt 0:00:39]} Re8 {[%emt 0:00:13]} (27... Ne3 $2 28. Ng3 Ng4 29. Qf4 $18) 28. Ng3 $1 {[%emt 0:00:33][%cal Og3h5] Intending Nh5! and mate.} ({Resist} 28. Be4 $6 Qe6 $11) 28... Qa4 $2 {[%emt 0:00:21][%mdl 8192] [#]} (28... f5 $16) 29. Rd2 {[%emt 0:00:25]} (29. Nh5 $142 $1 {[%mdl 512]} Qxd4+ 30. Rf2 Qxe5 31. Bf6 $1 {[%mdl 512]} Qe1+ 32. Rxe1 Rxe1+ 33. Rf1 Rxf1+ 34. Kxf1 Ne3+ 35. Kg1 Nf5 36. Bxf5 gxf5 37. Qg7#) 29... Qa3 $18 {[%emt 0:00:07] [#]} 30. Rf1 {[%emt 0:00:07]} (30. Rd3 $1 $18 {[%cal Rd3a3]} Qxc1+ 31. Qxc1 cxd4 32. Rxd4 Rxe5 33. Ne4) 30... Qe3+ $17 {[%emt 0:00:03]} 31. Qxe3 {[%emt 0:00:02]} Nxe3 {[%emt 0:00:01]} 32. Rff2 {[%emt 0:00:23]} (32. Re1 $17 {keeps fighting.} cxd4 33. Ne4 (33. Rxe3 dxe3 34. Rxd7 Rac8 $17) 33... Rxe5 34. Rxd4) 32... cxd4 $19 {[%emt 0:00:04]} 33. Rxd4 {[%emt 0:00:09]} Nxe5 {[%emt 0:00:01] Threatens to win with ...Rac8. Pair of Knights!} 34. Be4 {[%emt 0:00:15]} Bxe4 {[%emt 0:00:05]} 35. Nxe4 {[%emt 0:00:01]} N5g4 {[%emt 0:00:03] ...Rac8 is the strong threat.} 36. Re2 $2 {[%emt 0:00:01]} (36. Nd6 Nxf2 37. Nxe8 Nh3+ 38. gxh3 Rxe8 39. Bf6) 36... Nf5 $1 {[%emt 0:00:03][%csl LRd4,LRh4]} 37. Rd7 {[%emt 0:00:13]} Rac8 {[%emt 0:00:16]} 38. Bg5 {[%emt 0:00:04] [#]} (38. Be1 {might work better.}) 38... Re6 $2 {[%emt 0:00:17]} (38... Nfe3 $1 {[%mdl 512] ( -> ...Rc1+)} 39. Nf2 Ne5 40. Bxe3 Nxd7) 39. h3 {[%emt 0:00:04]} Ne5 {[%emt 0:00:06] What a bad dream for White.  Weighted Error Value: White=0.85/Black=0.65} 0-1

[Event "European Corporate Championship 2022"]
[Site "Rotterdam"]
[Date "2022.06.19"]
[Round "6.3"]
[White "Rietman, Frits"]
[Black "IJzermans, Cees"]
[Result "1-0"]
[ECO "C55"]
[WhiteElo "2237"]
[BlackElo "2115"]
[Annotator "TA"]
[PlyCount "127"]
[EventDate "2022.06.18"]
[EventType "team-tourn"]
[EventCountry "NED"]
[SourceTitle "playchess.com"]
[Source "ChessBase"]
[SourceQuality "1"]
[TimeControl "900+5"]

{[%evp 10,127,41,37,42,33,54,0,56,43,58,14,25,-16,-20,-25,0,7,33,10,0,10,58,49,63,54,56,43,87,71,71,75,246,113,118,14,18,18,19,14,0,-78,32,-138,0,0,19,-61,-54,-64,31,0,0,0,1,0,19,14,40,40,40,40,58,62,29965,29968,29965,29969,29970,29971,29967,29960,29975,29973,29973,29970,29972,29967,29972,0,29972,0,29973,29974,29974,29975,29975,29976,29976,29977,29977,29978,29978,29979,29979,29980,29980,29980,29981,29982,29982,29983,29986,29987,29987,29988,29988,29989,29990,29991,29991,29987,29994,29994,29994,29992,29992,29993,29996,29997]} 1. e4 {[%emt 0:00:02]} e5 {[%emt 0:00:10]} 2. Nf3 {[%emt 0:00:01]} Nc6 {[%emt 0:00:01]} 3. Bc4 {[%emt 0:00:03]} Be7 {[%emt 0:00:05]} 4. O-O {[%emt 0:00:13]} Nf6 {[%emt 0:00:05]} 5. d3 {[%emt 0:00:05]} O-O {[%emt 0:00:03]} 6. Re1 {[%emt 0:00:17]} Re8 {[%emt 0:00:14] C55: Two Knights: 4 d3, 4 d4 exd4 5 e5 and Max Lange Attack.} 7. c3 {[%emt 0:00:24]} h6 {[%emt 0:01:08]} 8. b4 {[%emt 0:01:44]} ({Better is} 8. a4 $14) 8... d6 {[%emt 0:00:37]} (8... d5 $1 $11 9. exd5 Nxd5) 9. Qb3 {[%emt 0:00:41]} Rf8 {[%emt 0:00:03] [#]} 10. h3 $146 {[%emt 0:02:19]} ({Predecessor:} 10. Nh4 Bd7 11. Ng6 a6 12. Nxf8 Qxf8 13. Qc2 Nd8 14. Nd2 Be6 15. a4 Bxc4 16. Nxc4 {1-0 (27) Franco Valencia,A (2245)-Mercado,L (1926) Antioquia 2016}) 10... a5 {[%emt 0:00:02]} 11. a3 {[%emt 0:00:13]} axb4 {[%emt 0:00:04]} 12. cxb4 {[%emt 0:00:02]} Bd7 {[%emt 0:02:51]} (12... Nxb4 $5 13. Qxb4 d5 $15) 13. Bb2 {[%emt 0:00:44]} Qb8 {[%emt 0:00:31]} 14. Qd1 {[%emt 0:01:59]} b5 {[%emt 0:02:50]} (14... Nh7 {feels hotter.} 15. d4 Ng5 16. Nxg5 Bxg5 17. dxe5 Nxe5 18. Bxe5 Ba4) 15. Bb3 {[%emt 0:00:05]} Be6 {[%emt 0:00:03]} (15... Nh7 $11 {feels stronger.}) 16. Bxe6 $14 {[%emt 0:00:46]} fxe6 {[%emt 0:00:02]} 17. Qb3 {[%emt 0:00:04]} Qc8 {[%emt 0:01:18]} 18. Nc3 {[%emt 0:00:31]} Rb8 {[%emt 0:00:23]} 19. Rac1 {[%emt 0:00:08][%cal Oc3b5]} Qd7 {[%emt 0:00:04]} 20. Ne2 {[%emt 0:00:20]} Nh5 $2 {[%emt 0:01:29] [#]} (20... Rb6 $16) 21. d4 {[%emt 0:00:16]} (21. Rxc6 $1 $18 {[%mdl 512] is the precise move to win.} Qxc6 22. Qxe6+ Kh7 23. Qxe7) 21... exd4 $16 {[%emt 0:00:34] [#]} 22. Nexd4 {[%emt 0:00:27]} (22. Rxc6 $1 $16 {[%mdl 512]} Qxc6 23. Qxe6+ Rf7 24. Ne5 (24. Bxd4 Qe8 $14)) 22... Nxd4 $11 {[%emt 0:00:04]} 23. Nxd4 {[%emt 0:00:03]} Nf4 {[%emt 0:00:47]} 24. Nc6 {[%emt 0:02:52]} Rb6 {[%emt 0:00:05]} 25. Qg3 {[%emt 0:00:24]} Nh5 {[%emt 0:00:34]} (25... Bg5 $17 26. Nd4 Nh5) 26. Qg6 $2 {[%emt 0:00:18]} (26. Nxe7+ $14 {stays ahead.} Qxe7 27. Qb3) 26... Rxc6 {[%emt 0:00:10]} (26... Bg5 $1 $17 {[%cal Of8f2] ...Rxf2! is the strong threat.} 27. Qxh5 Bxc1) 27. Qxh5 {[%emt 0:00:16]} Bf6 {[%emt 0:00:13]} 28. e5 {[%emt 0:00:26]} (28. Bxf6 $11 Rxf6 29. Qg4 (29. Qxb5 Rxc1 30. Qxd7 Rxe1+ 31. Kh2 Re2 $11)) 28... Rxc1 $15 {[%emt 0:00:07]} 29. Rxc1 {[%emt 0:00:02]} dxe5 {[%emt 0:00:17]} (29... Bxe5 $1 $15 30. Bxe5 Rf5) 30. Rd1 {[%emt 0:00:17]} (30. Bxe5 {keeps more tension.} Qd2 31. Rd1 Qc2 32. Rf1) 30... Qf7 {[%emt 0:00:39]} 31. Qxf7+ {[%emt 0:00:14]} Rxf7 $11 {[%emt 0:00:01][%mdl 4096] Endgame KRB-KRB} 32. Re1 {[%emt 0:00:02]} e4 {[%emt 0:00:40]} 33. Bxf6 {[%emt 0:00:01]} gxf6 {[%emt 0:00:02]} 34. Rxe4 {[%emt 0:00:02] KR-KR} e5 {[%emt 0:00:02][%cal Oc7c5]} 35. f4 {[%emt 0:00:07]} Re7 {[%emt 0:00:29]} 36. fxe5 {[%emt 0:00:01]} Rxe5 $2 {[%emt 0:00:01][%mdl 8192] Black is now going downhill.} (36... fxe5 $14 37. Re2 c6) 37. Rxe5 {[%emt 0:00:05]} fxe5 $14 {[%emt 0:00:00] KP-KP} 38. Kf2 {[%emt 0:00:06]} Kf7 {[%emt 0:00:03]} 39. Ke3 {[%emt 0:00:04]} Kf6 {[%emt 0:00:02]} 40. Ke4 {[%emt 0:00:05]} h5 {[%emt 0:00:03]} 41. g3 {[%emt 0:00:20][%cal Bg2g3,Bg3g4,Bg4g5][%mdl 32]} c6 {[%emt 0:00:12]} 42. Ke3 {[%emt 0:00:25]} Kg5 {[%emt 0:00:33]} 43. Kf3 {[%emt 0:00:07]} Kg6 {[%emt 0:00:09]} 44. Ke3 {[%emt 0:00:22]} Kg5 $1 {[%emt 0:00:06]} 45. Ke4 {[%emt 0:00:05]} Kf6 $1 {[%emt 0:00:02]} 46. g4 $1 {[%emt 0:00:10] White mates.} h4 {[%emt 0:00:01] [#]} 47. g5+ $1 {[%emt 0:00:10]} Kg6 {[%emt 0:00:05]} 48. Kxe5 {[%emt 0:00:02]} Kxg5 {[%emt 0:00:01] [#] K3P-K3P} 49. Ke4 $1 {[%emt 0:00:05]} ({Not} 49. Kd6 Kf4 50. Kxc6 Kg3 51. Kxb5 Kxh3 $11) 49... Kf6 {[%emt 0:00:12]} 50. Kf4 {[%emt 0:00:01]} Ke6 {[%emt 0:00:00]} 51. Kg4 {[%emt 0:00:01]} Kd5 {[%emt 0:00:01]} 52. Kxh4 {[%emt 0:00:01] K3P-KPP} Kc4 {[%emt 0:00:00]} 53. Kg3 {[%emt 0:00:07]} Kb3 {[%emt 0:00:00]} 54. h4 {[%emt 0:00:02]} Kxa3 {[%emt 0:00:01]} 55. h5 {[%emt 0:00:01]} Kxb4 {[%emt 0:00:02] KPP-KP} 56. h6 {[%emt 0:00:00]} c5 {[%emt 0:00:01]} 57. h7 {[%emt 0:00:02]} c4 {[%emt 0:01:28]} 58. h8=Q Kb3 {[%emt 0:00:00]} 59. Kf2 {[%emt 0:00:08]} c3 {[%emt 0:00:00]} 60. Ke2 {[%emt 0:00:01]} Kc2 {[%emt 0:00:00]} 61. Qd4 {[%emt 0:00:05]} Kb3 {[%emt 0:00:00]} 62. Qd5+ {[%emt 0:00:04]} Ka4 {[%emt 0:00:00]} 63. Kd3 {[%emt 0:00:05]} b4 {[%emt 0:00:02]} 64. Kc2 {[%emt 0:00:02] Weighted Error Value: White=0.44/Black=0.23 (precise)} 1-0

[Event "European Corporate Championship 2022"]
[Site "Rotterdam"]
[Date "2022.06.19"]
[Round "6.4"]
[White "Van den Broek, Rene"]
[Black "Muller, Kenneth"]
[Result "1/2-1/2"]
[ECO "D00"]
[WhiteElo "1980"]
[BlackElo "1884"]
[Annotator "NA RC"]
[PlyCount "69"]
[EventDate "2022.06.18"]
[EventType "team-tourn"]
[EventCountry "NED"]
[SourceTitle "playchess.com"]
[Source "ChessBase"]
[SourceQuality "1"]
[TimeControl "900+5"]

1. d4 {[%emt 0:00:02]} d5 {[%emt 0:00:02]} 2. Bf4 {[%emt 0:00:02]} Nf6 {[%emt 0:00:10]} 3. e3 {[%emt 0:00:02]} e6 {[%emt 0:00:03]} 4. Bd3 {[%emt 0:00:05]} c5 {[%emt 0:00:04]} 5. c3 {[%emt 0:00:01]} Nc6 {[%emt 0:00:01]} 6. Bg3 {[%emt 0:01:25]} Bd6 {[%emt 0:00:38]} 7. f4 {[%emt 0:00:02]} b6 {[%emt 0:00:53]} 8. Nd2 {[%emt 0:01:57]} Bb7 {[%emt 0:01:19]} 9. Qe2 {[%emt 0:00:02]} Qe7 {[%emt 0:00:14]} 10. Ngf3 {[%emt 0:00:09]} h6 {[%emt 0:00:09]} 11. O-O {[%emt 0:00:45]} Rc8 {[%emt 0:00:49]} 12. Ne5 {[%emt 0:00:55]} cxd4 {[%emt 0:01:20]} 13. exd4 {[%emt 0:00:05]} Nd7 {[%emt 0:02:10]} 14. Ba6 {[%emt 0:00:17]} Bxa6 {[%emt 0:00:34]} 15. Qxa6 {[%emt 0:00:02]} O-O {[%emt 0:00:06]} 16. Ndf3 {[%emt 0:01:21]} Nf6 {[%emt 0:01:09]} 17. Bh4 {[%emt 0:00:10]} Nb8 {[%emt 0:00:29]} 18. Qd3 {[%emt 0:00:32]} Qd8 {[%emt 0:00:08]} 19. f5 {[%emt 0:00:13]} Re8 {[%emt 0:00:48]} 20. Rae1 {[%emt 0:00:17]} Nbd7 {[%emt 0:00:05]} 21. Nxd7 {[%emt 0:01:21]} Qxd7 {[%emt 0:00:01]} 22. Bxf6 {[%emt 0:00:04]} gxf6 {[%emt 0:00:01]} 23. Nh4 {[%emt 0:01:18]} e5 {[%emt 0:01:17]} 24. Qd2 {[%emt 0:00:01]} Kh7 {[%emt 0:00:24]} 25. Re3 {[%emt 0:00:12]} e4 {[%emt 0:04:16]} 26. Rh3 {[%emt 0:00:02]} Bf8 {[%emt 0:00:00]} 27. g4 {[%emt 0:00:55]} Qe7 {[%emt 0:00:00]} 28. Ng2 {[%emt 0:00:03]} Bg7 {[%emt 0:00:00]} 29. Ne3 {[%emt 0:00:26]} Qd8 {[%emt 0:00:00]} 30. Rh5 {[%emt 0:00:12]} Rg8 {[%emt 0:00:00]} 31. h4 {[%emt 0:00:04]} Rc6 {[%emt 0:00:00]} 32. Qf2 {[%emt 0:00:13]} Bf8 {[%emt 0:00:00]} 33. Qf4 {[%emt 0:00:33]} Qd6 {[%emt 0:00:00]} 34. Qxd6 {[%emt 0:00:02]} Rxd6 {[%emt 0:00:00]} 35. Kh2 {[%emt 0:00:08]} 1/2-1/2

[Event "European Corporate Championship 2022"]
[Site "Rotterdam"]
[Date "2022.06.19"]
[Round "6.5"]
[White "Barski, Radoslaw"]
[Black "Vistisen, Lars"]
[Result "1-0"]
[ECO "C54"]
[WhiteElo "2434"]
[BlackElo "2080"]
[Annotator "TA"]
[PlyCount "63"]
[EventDate "2022.06.18"]
[EventType "team-tourn"]
[EventCountry "NED"]
[SourceTitle "playchess.com"]
[Source "ChessBase"]
[SourceQuality "1"]
[TimeControl "900+5"]

{[%evp 13,63,11,26,14,34,-90,40,34,51,35,58,28,114,123,114,119,122,115,118,114,117,114,135,125,141,120,133,119,116,80,123,108,127,125,186,180,203,200,297,297,408,408,408,408,407,391,408,408,406,401,1906,1255]} 1. e4 {[%emt 0:00:01]} e5 {[%emt 0:00:02]} 2. Nf3 {[%emt 0:00:02]} Nc6 {[%emt 0:00:01]} 3. Bc4 {[%emt 0:00:01]} Nf6 {[%emt 0:00:01]} 4. d3 {[%emt 0:00:01]} Bc5 {[%emt 0:00:04]} 5. O-O {[%emt 0:00:08]} O-O {[%emt 0:00:14]} 6. c3 {[%emt 0:00:10]} d6 {[%emt 0:00:05]} 7. a4 {[%emt 0:00:02] 7.Re1 is becoming the main line.} a6 {[%emt 0:00:30]} 8. Re1 {[%emt 0:00:03] C54: Giuoco Piano: 4 c3 Nf6, main lines with 5 d4 and 5 d3.} Be6 {[%emt 0:00:20]} 9. h3 {[%emt 0:00:25] [#]} (9. Bxe6 $14 {keeps the upper hand.} fxe6 10. b4) 9... Ne7 $146 {[%emt 0:01:22]} (9... Nxe4 $1 $17 10. Rxe4 d5) ({Predecessor:} 9... h6 10. Ba2 Re8 11. d4 Bxa2 12. Rxa2 exd4 13. cxd4 Bb4 14. Nc3 Bxc3 15. bxc3 Rxe4 16. Rxe4 Nxe4 {0-1 (35) Williams,A-Kelbl,J (1882) ICCF email 2010}) 10. Bxe6 $14 {[%emt 0:01:51] White is slightly better.} fxe6 {[%emt 0:00:02]} 11. Qb3 {[%emt 0:00:02][%csl LRb7,LRe6] Hoping for d4.} Qd7 {[%emt 0:00:01]} 12. d4 {[%emt 0:00:03]} Bb6 {[%emt 0:01:25]} (12... exd4 $11 13. cxd4 Ba7) 13. a5 $16 {[%emt 0:00:15]} Ba7 {[%emt 0:00:16]} 14. dxe5 {[%emt 0:00:03]} dxe5 {[%emt 0:00:01]} 15. Be3 {[%emt 0:03:18]} (15. Qxb7 $2 Rfb8 16. Nxe5 Qd6 $19) (15. Nxe5 $6 {[#]} Bxf2+ $1 16. Kxf2 Ng4+ 17. Kg1 Nxe5 $11) 15... Bxe3 {[%emt 0:00:37]} 16. Rxe3 {[%emt 0:00:02]} Ng6 {[%emt 0:00:06]} 17. Nbd2 {[%emt 0:00:01]} ({Avoid the trap} 17. Qxb7 $2 Rfb8 18. Qxa8 Rxa8 $19) 17... Qc6 {[%emt 0:00:49]} 18. Qc4 {[%emt 0:01:33]} Qd6 {[%emt 0:01:16]} 19. Qa4 {[%emt 0:01:34]} b5 {[%emt 0:04:12]} 20. axb6 $1 {[%emt 0:01:23]} cxb6 {[%emt 0:00:01]} 21. Qb3 {[%emt 0:00:08] Black must now prevent Nc4.} b5 {[%emt 0:00:12] Inhibits Nc4.} 22. c4 {[%emt 0:00:03]} Rab8 {[%emt 0:00:17]} 23. Qa2 {[%emt 0:00:52]} bxc4 {[%emt 0:02:41]} (23... Nd7 $16 24. Ra3 (24. Qxa6 Nb6 $16) 24... Nc5) 24. Nxc4 $18 {[%emt 0:00:05]} Qc5 {[%emt 0:00:10]} 25. Qxa6 {[%emt 0:00:20]} Nf4 {[%emt 0:01:12]} (25... Qc8 $142 26. b3 (26. Ncxe5 Nxe5 27. Nxe5 Rxb2 $18) 26... Ra8 27. Qxa8 Qxa8 28. Rxa8 Rxa8 29. Nfxe5 (29. Ncxe5 Nxe5 30. Nxe5 Ra5 $18) 29... Nxe5) 26. Nfxe5 {[%emt 0:00:34]} Rxb2 {[%emt 0:00:32]} 27. Nxb2 {[%emt 0:01:31]} Qxe5 {[%emt 0:00:00]} 28. Nd3 {[%emt 0:00:54]} Nxd3 {[%emt 0:00:17]} 29. Rxd3 {[%emt 0:00:01]} Nxe4 {[%emt 0:00:26]} 30. Re1 {[%emt 0:00:38]} Qf5 {[%emt 0:00:12]} 31. Rf3 {[%emt 0:00:06]} Nc5 {[%emt 0:00:06]} (31... Qd5 $142 32. Rxf8+ Kxf8) 32. Qd6 {[%emt 0:01:01] Weighted Error Value: White=0.17 (very precise) /Black=0.37} 1-0